Cogmind - Beta 14 @@@ ROGUE MODE // 2025.03.27 @ 18:16:00 Player: SelfCookedBird Result: Self-destructed Performance ------------- Evolutions (1) 500 Regions Visited (3) 600 Robots Destroyed (35) 175 Value Destroyed (773) 773 Prototype IDs (0) 0 Alien Tech Used (0) 0 Bonus (8) 8 TOTAL SCORE: 2056 Bonus ------- High Alert Combat Kills 8 Cogmind --------- Core Integrity 312/400 Matter 58/300 Energy 100/100 System Corruption 0% Temperature Cool (6) Movement Walking (120) Location -9/Materials Parts ------- > --- POWER (1) -------- (None) > --- PROPULSION (4) --- Improved Aluminum Leg > --- UTILITY (2) ------ Small Storage Unit > --- WEAPON (2) ------- Light Assault Rifle > --- INVENTORY (8) ---- Nuclear Core Improved Aluminum Leg Disposable Heat Sink Decoy Drone Bay Light Assault Rifle Light Assault Rifle Light Assault Rifle Peak State ------------ > --- POWER ------------ Nuclear Core > --- PROPULSION ------- Aluminum Leg Aluminum Leg Aluminum Leg Improved Aluminum Leg > --- UTILITY ---------- Small Storage Unit Propulsion Shielding > --- WEAPON ----------- Rocket Launcher Rocket Launcher > --- INVENTORY -------- Nuclear Core Aluminum Leg Disposable Heat Sink Decoy Drone Bay Light Assault Rifle Light Assault Rifle Light Assault Rifle [Rating: 16] Favorites ----------- Power Light Ion Engine Engine Light Ion Engine Power Core Nuclear Core Propulsion Aluminum Leg Leg Aluminum Leg Flight Unit Flight Unit Utility Small Storage Unit Storage Small Storage Unit Protection Light Armor Plating Weapon Light Assault Rifle Ballistic Gun Light Assault Rifle Launcher Rocket Launcher Build | -11 -10 -10 -9 ------- Run | Yrd Mat Min Mat Slots Evolved 2 | . . . 2 Power . | . . . . Propulsion 2 | . . . 2 Utility . | . . . . Weapon . | . . . . Parts Attached 26 | 7 3 4 12 Power 4 | 1 . 2 1 Engine 3 | 1 . 2 . Core 1 | . . . 1 Reactor . | . . . . Propulsion 9 | 2 . . 7 Treads . | . . . . Leg 8 | 2 . . 6 Wheel . | . . . . Hover . | . . . . Flight 1 | . . . 1 Utility 3 | 1 1 . 1 Device . | . . . . Storage 1 | 1 . . . Processor . | . . . . Hackware . | . . . . Protection 2 | . 1 . 1 Artifact . | . . . . Weapon 10 | 3 2 2 3 Energy Gun . | . . . . Energy Cannon . | . . . . Ballistic Gun 7 | 3 1 2 1 Ballistic Cannon . | . . . . Launcher 3 | . 1 . 2 Special Weapon . | . . . . Impact Weapon . | . . . . Slashing Weapon . | . . . . Piercing Weapon . | . . . . Special Melee Weapon . | . . . . Unidentified Prototypes . | . . . . Parts Lost 8 | . . . 8 Power 1 | . . . 1 Propulsion 4 | . . . 4 Utility 1 | . . . 1 Weapon 2 | . . . 2 Highest Loss Streak 4 | . . . 4 To Critical Strikes . | . . . . Average Slot Usage (%) 96 | . 96 100 91 Engine 9 | . 14 14 . Core 3 | . . . 9 Leg 32 | . 28 28 41 Storage 13 | . 14 14 11 Protection 11 | . 11 14 7 Ballistic Gun 21 | . 21 28 9 Launcher 4 | . 7 . 10 Peak Build Rating 16 | 6 7 9 16 Average Rating 9 | 4 6 8 13 On Entrance 5 | . 6 7 9 Naked Turns . | . . . . Heaviest Build 21 | 14 18 17 21 Greatest Support 43 | 20 20 20 43 Greatest Overweight (x) 1 | 1 . . . Average Overweight (x) . | . . . . Largest Inventory Capacity 8 | 8 8 8 8 Average Capacity 7 | 6 8 8 8 Most Carried 8 | 6 8 8 8 Average Carried 7 | 4 7 7 7 Final Capacity 8 | 8 8 8 8 Final Carried 8 | 6 8 8 8 Class Distribution -------------------- 88% | Mutant 11% | Scavenger-Mutant Dominant Class ---------------- Mutant | -10/Materials Mutant | -10/Mines Mutant | -9/Materials Resources | -11 -10 -10 -9 ----------- Run | Yrd Mat Min Mat Matter Collected 744 | 220 106 150 268 Remotely . | . . . . Salvage Created 614 | . 114 95 405 Parts 60 | . 9 11 40 Haulers Intercepted . | . . . . Recyclers Shooed . | . . . . Parts Field Recycled . | . . . . Retrieved Matter . | . . . . Parts Self-Destructed . | . . . . Prevented . | . . . . Kills | -11 -10 -10 -9 ------- Run | Yrd Mat Min Mat Combat Hostiles Destroyed 24 | . 4 6 14 Guns 8 | . 2 6 . AOE 16 | . 2 . 14 Classes Destroyed 7 | . 1 1 5 Worker 5 | . . . 5 Builder 3 | . . . 3 Recycler 1 | . . . 1 Watcher 2 | . . . 2 Swarmer 9 | . . 6 3 Grunt 13 | . 4 . 9 Sentry 2 | . . . 2 Best Kill Streak 11 | . 2 4 11 Combat Bots Only 6 | . 2 4 6 Max Kills in Single Turn 3 | . 1 1 3 Gunslinging . | . . . . Exploded 3 | . 1 . 3 Melee . | . . . . Uniques/NPCs Destroyed . | . . . . Combat | -11 -10 -10 -9 -------- Run | Yrd Mat Min Mat Hostile Shots Fired 142 | . 48 25 69 Missed 59 | . 22 11 26 Damage Taken 1236 | . 269 121 846 Core 129 | . 32 9 88 Absorbed by Shields . | . . . . Redirected to Shielding 50 | . . . 50 Core Remaining (%) 91 | 100 . 83 . Volleys Fired 52 | 3 12 10 27 Largest 2 | 1 2 2 2 Hottest 66 | 20 50 40 66 Shots Fired 93 | 3 24 20 46 Gun 50 | 3 18 20 9 Cannon . | . . . . Launcher 43 | . 6 . 37 Special . | . . . . Kinetic 50 | 3 18 20 9 Thermal . | . . . . Explosive 43 | . 6 . 37 Electromagnetic . | . . . . Robot Hit Streak 8 | 1 4 4 8 Robot Miss Streak 3 | 1 3 2 2 Penetration Max . | . . . . Secondary Targets . | . . . . Shots Hit Robots 44 | 2 14 11 17 Core Hits 53 | 1 5 8 39 Critical Kills 1 | . 1 . . Critical Parts Destroyed . | . . . . Critical Strikes 1 | . 1 . . Destroy 1 | . 1 . . Melee Attacks . | . . . . Impact . | . . . . Slashing . | . . . . Piercing . | . . . . Sneak Attacks . | . . . . Combat Hostiles . | . . . . Follow-up Attacks . | . . . . Damage Inflicted 2224 | 20 356 150 1698 Guns 315 | 20 126 144 25 Cannons . | . . . . Explosions 1901 | . 230 . 1671 Melee . | . . . . Ramming 8 | . . 6 2 Kinetic 315 | 20 126 144 25 Thermal . | . . . . Explosive 1901 | . 230 . 1671 Electromagnetic . | . . . . Impact . | . . . . Slashing . | . . . . Piercing . | . . . . Highest Corruption . | . . . . Average Corruption . | . . . . Corruption Purged . | . . . . Corruption Blocked . | . . . . Overload Shots . | . . . . Overflow Damage 30 | . . . 30 Projectiles . | . . . . Explosions 30 | . . . 30 Melee . | . . . . Knockbacks . | . . . . Impact . | . . . . Kinetic . | . . . . Secondary . | . . . . Self-Inflicted Damage 293 | . 26 . 267 Shots 7 | . 2 . 5 Rammed . | . . . . Targets Rammed 2 | . . 1 1 Kicked 2 | . . 1 1 Crushed . | . . . . Highest Temperature 54 | . 9 12 54 Average Temperature 10 | . 4 6 12 Received Heat Transfer 345 | . 75 . 270 Siege Activations . | . . . . Robots Corrupted . | . . . . Combat Hostiles . | . . . . Parts Fried . | . . . . Impact Corruptions . | . . . . Robots Melted . | . . . . Combat Hostiles . | . . . . Parts Melted . | . . . . Heat Transferred . | . . . . Parts Sabotaged . | . . . . Parts Stolen . | . . . . Parts Stripped . | . . . . Power Chain Reactions . | . . . . Alert | -11 -10 -10 -9 ------- Run | Yrd Mat Min Mat Peak Influence 513 | . 156 200 513 Initial 60 | . . 60 . Average 82 | . 70 58 138 Maximum Alert Level 2 | . . 1 2 Low Security (%) 86 | 100 100 97 61 Level 1 11 | . . 2 31 Level 2 2 | . . . 6 Level 3 . | . . . . Level 4 . | . . . . Level 5 . | . . . . High Security . | . . . . Max Security . | . . . . Squads Dispatched 3 | . 1 . 2 Investigation 1 | . . . 1 Extermination . | . . . . Reinforcement 2 | . 1 . 1 Assault . | . . . . Garrison . | . . . . Intercept . | . . . . Searches Triggered . | . . . . Construction Impeded 1 | . . . 1 Haulers Reinforced . | . . . . Active Scanning Responses . | . . . . Cargo Convoy Interrupts . | . . . . Stealth | -11 -10 -10 -9 --------- Run | Yrd Mat Min Mat Distress Signals 4 | . 2 . 2 Communications Jammed . | . . . . Distress Signals . | . . . . Times Spotted 41 | . 12 4 25 Peak Tracking Total 6 | . 6 3 6 Tactical Retreats . | . . . . Traps | -11 -10 -10 -9 ------- Run | Yrd Mat Min Mat Traps Triggered . | . . . . Indirectly . | . . . . Trap Hack Attempts . | . . . . Triggered . | . . . . Disarmed . | . . . . Reprogrammed . | . . . . Reused . | . . . . Traps Extracted . | . . . . Installed 1 | . . 1 . Triggered . | . . . . Machines | -11 -10 -10 -9 ---------- Run | Yrd Mat Min Mat Machines Disabled 8 | . 1 . 7 Max in Single Turn 1 | . 1 . 1 Machines Repaired . | . . . . Machines Dismantled . | . . . . Machines Sabotaged . | . . . . Overloaded Fab Kills . | . . . . Hacking | -11 -10 -10 -9 --------- Run | Yrd Mat Min Mat Machines Accessed 4 | . 2 1 1 Terminals 3 | . 2 . 1 Fabricators . | . . . . Repair Stations . | . . . . Recycling Units . | . . . . Scanalyzers . | . . . . Garrison Access . | . . . . Total Hacks 12 | . 6 1 5 Successful 5 | . 3 1 1 Failed 7 | . 3 . 4 Catastrophic 1 | . . . 1 Database Lockouts . | . . . . Manual . | . . . . Terminals 11 | . 6 . 5 Fabricators . | . . . . Repair Stations . | . . . . Recycling Units . | . . . . Scanalyzers . | . . . . Garrison Access . | . . . . Terminal Hacks 5 | . 3 1 1 Record 1 | . . . 1 Open Door 1 | . . 1 . Branch Access Points 1 | . 1 . . Dispatch Records 1 | . 1 . . Hauler Manifests 1 | . 1 . . Fabricator Hacks . | . . . . Repair Station Hacks . | . . . . Recycling Unit Hacks . | . . . . Scanalyzer . | . . . . Garrison Access Hacks . | . . . . Unauthorized Hacks . | . . . . Terminals . | . . . . Fabricators . | . . . . Repair Stations . | . . . . Recycling Units . | . . . . Scanalyzers . | . . . . Garrison Access . | . . . . Data Cores Recovered . | . . . . Used . | . . . . Hacking Detections 2 | . 1 . 1 Full Trace Events 1 | . . . 1 Feedback Events . | . . . . Feedback Blocked . | . . . . Robot Schematics Acquired . | . . . . Robots Built . | . . . . Authchips . | . . . . Time . | . . . . Total Robot Build Rating . | . . . . Part Schematics Acquired . | . . . . Parts Built . | . . . . Authchips . | . . . . Time . | . . . . Total Part Build Rating . | . . . . Parts Repaired . | . . . . Time . | . . . . Parts Recycled . | . . . . Recycled Matter . | . . . . Retrieved Matter . | . . . . Retrieved Components . | . . . . Parts Scanalyzed . | . . . . Part Schematics Acquired . | . . . . Parts Damaged . | . . . . Bothacking | -11 -10 -10 -9 ------------ Run | Yrd Mat Min Mat Used RIF Installer . | . . . . Robots Hacked . | . . . . Non-combat . | . . . . Combat . | . . . . Robot Hacks Applied . | . . . . Relay Couplers Released . | . . . . Fabnet Peak Effective % . | . . . . Robots Rewired . | . . . . Allies Hacked . | . . . . Hacks Repelled . | . . . . Allies | -11 -10 -10 -9 -------- Run | Yrd Mat Min Mat Total Allies . | . . . . Largest Group . | . . . . Highest-Rated Group . | . . . . Highest-Rated Ally . | . . . . Total Orders . | . . . . Ally Attacks . | . . . . Total Damage . | . . . . Kills . | . . . . Allies Corrupted . | . . . . Allies Melted . | . . . . Intel | -11 -10 -10 -9 ------- Run | Yrd Mat Min Mat Robot Analysis Total . | . . . . Derelict Logs Recovered 1 | . . 1 . Drone Launches . | . . . . Drone Recoveries . | . . . . Exploration | -11 -10 -10 -9 ------------- Run | Yrd Mat Min Mat Turns Passed 1789 | 81 243 906 559 Spaces Moved 1308 | 51 158 717 382 Core 4 | 4 . . . Treads . | . . . . Legs 1304 | 47 158 717 382 Wheels . | . . . . Hover . | . . . . Flight . | . . . . Fastest Speed 50 | 50 120 120 120 Average Speed 119 | 116 120 120 120 Slowest Speed 120 | 120 120 120 120 Overloaded Moves . | . . . . Propulsion Burnouts . | . . . . Robots Hopped . | . . . . Cave-ins Triggered . | . . . . Exploration Rate (%) 41 | 3 29 95 39 Regions Visited 3 Branch Regions 1 Pre-discovered Areas . | . . . . Known Exits Taken 1 | . 1 . . Unknown Exits Taken 2 | 1 . 1 . Scrap Searched 1 | . . 1 . Spaces Dug . | . . . . Terrain Destroyed 305 | . 35 . 270 Melee . | . . . . Projectile . | . . . . AOE 305 | . 35 . 270 Terrain Rammed . | . . . . Walls Destroyed . | . . . . Machines Disabled . | . . . . Actions | -11 -10 -10 -9 --------- Run | Yrd Mat Min Mat Total 1440 | 66 188 748 438 Wait 15 | . 6 6 3 Move 1305 | 50 157 716 382 Hop . | . . . . Pick Up 20 | 6 6 3 5 Fast Attach 9 | 6 1 . 2 Attach 2 | . . . 2 Detach . | . . . . Swap 15 | 1 2 4 8 Drop 19 | . 4 7 8 Fire 52 | 3 12 10 27 Melee . | . . . . Ram . | . . . . Kick 2 | . . 1 1 Crush . | . . . . Escape Stasis . | . . . . Rewire . | . . . . Trap 1 | . . 1 . Miscellaneous . | . . . . Route ------- -11/Scrapyard -10/Materials -10/Mines (discovered 2 exits: *Mat x2) -9/Materials History --------- Turn | Location | Event 10 | -11/Scrapyard | Discovered new exit (range 16) 82 | -11/Scrapyard | Entered Materials 276 | -10/Materials | Identified exit to Mines 317 | -10/Materials | Build established: Mutant 325 | -10/Materials | Entered Mines 424 | -10/Mines | Learned Materials terminal intel 449 | -10/Mines | Found the Drone Emporium 459 | -10/Mines | Found Prototype Device 790 | -10/Mines | Received a Rocket Launcher from a helpful Derelict 824 | -10/Mines | Found a hidden stash of uninstalled traps 915 | -10/Mines | Discovered new exit (range 5) 986 | -10/Mines | Discovered new exit (range 15) 1231 | -10/Mines | Entered Materials 1231 | -9/Materials | Evolved 2 slots: Propulsion x2 1232 | -9/Materials | Loaded intel: 12 terminal locations 1790 | -9/Materials | Self-destructed Last Messages --------------- 01735_ K-01 Serf collects debris. 01736_ U-05 Engineer lays Concrete. 01738_ K-01 Serf collects debris. 01738_ U-05 Engineer builds a Wall. 01740_ Acquired 89 matter. 01742_ U-05 Engineer builds a Wall. 01742_ K-01 Serf collects debris. 01742_ Connecting with Scanalyzer... 01751_ G-34 Mercenary destroyed. 01753_ K-01 Serf destroyed. 01756_ Destroyed Ion Engine. 01758_ Aluminum Leg destroyed. 01762_ G-34 Mercenary destroyed. 01762_ K-01 Serf destroyed. 01764_ The unstable cave ceiling collapses. 01764_ Aluminum Leg destroyed. 01766_ The unstable cave ceiling collapses. 01781_ Terminal disabled. 01784_ Flight Unit destroyed. 01785_ Rocket Launcher destroyed. Map ----- +----------------------------------------------------+ | ?????????????????????????????????????????????????? | | ?????????????????????????????????????????????????? | | ?????????????????????????????????????????????????? | | ?????????????????????????????????????????????????? | | ?????????????????????????????????????????????????? | | ???????????????????????????????????????????T?????? | | ?????????????????????????????????????????????????? | | ?????????????????????????????????????????????????? | | ?????????????????????????????????????????????????? | | ?????????????????????????????????????????????????? | | ?????????????????????????????????????????????????? | | ?????????????????????????????????????????????????? | | ?????????????????????????????????????????????????? | | "T"??????????????????????????????????????????????? | | """??????????????????????????????????????????????? | | ?????????????????????????????????????????????????? | | ?????????????????????#+##+###????????????????????? | | ???????????????????? #????????????????????? | | ???????????????????#""" /#????????????????????? | | ???????????????????#""" ! #????????????????????? | | ???????????????????#""" #???????? ???????????? | | ???????????????????# #??????? ???????????? | | ???????????????????#""" #?#####+##???????????? | | ???????????????????#""" # #???????????? | | ???????????????????#""" g/ g ?????????????? | | ???????????????????# w@ g#? ???????????????? | | #??????????????????#####/#### #????????????????? | | #####?????? ##+####### ## #????????????????? | | ????? =w #????????????????? | | ????? #????????????????? | | ??????? #????????????????? | | ##????????? ##+###### ###+##????????????????? | | #???????????????????# ##?????????????????????? | | ?????????????????T??# #??????????????????????? | | ????????????????????### #??????????????????????? | | ?????????????????????## ##?????????????????????? | | ?????????????????????# #???? ?????????????? | | ?????????????????????# # ??????????? | | ???????????????####### ## ????????????? | | ####+########### = = ??????????? | | + != #??????????? | | #+############## # =% # ###??????????? | | # """"" #??????# "" # ## * ##????????????? | | # """"" #??????# S"" # #?=% ?????????????? | | # """"" #???####""" # #? """"" #????????????? | | # ##?## #+# # ## """"" #????????????? | | # ] = # ## ! ## """????#????????????? | | ##+####### %[ # ?????????????????? | | * # = ""??????????????????? | | #### = =%! ""??????????????????? | +----------------------------------------------------+ Best States ------------- Heat Dissipation 28 Energy Generation 14 Energy Capacity 250 Matter Stores 284 Matter Capacity 300 Sight Range 16 Terrain Scan Density 10 Armor Coverage 150 Propulsion Shielding 33 Evasion (%) 55 Item Schematics ----------------- None Robot Schematics ------------------ None Fabricated ------------ Nothing Alien Tech Used ----------------- None Achievements -------------- None Challenges ------------ None Game ------ Seed ConstructProtonTube Manual? 0 Play Time 00:21:18 Cumulative 6.3 hours Start 2025.03.27 @ 17:54:22 End 2025.03.27 @ 18:16:00 Sessions 1 Manual Loads 0 Difficulty Rogue Special Mode None Game No. 11 Rogue 11 Adventurer 0 Explorer 0 Win Type - Total 0 Types 0/0/0/0/0/0/0/0/0 Lore% 4 Gallery% 7 Achievement% 10 Wizard Run 0 Options --------- Layout 0 ASCII 1 Keyboard 1 Movement Arrows Keybinds 0 Fullscreen 2 Font 24/Smallcaps Map View 76x50 Zoom Use 0% Tactical HUD 1 Map Filters NONE Filters NONE Steam 1 RUN: b83fe5b4-d5f8-4001-9ff4-088cfa76da89